bitfinex/quotes_SOLUSD_20241122
["timestamp","ask_amount","ask_price","bid_price","bid_amount"]
[1732307656970,2.5,253.63,253.6,12.09271372]
[1732307657186,0.59148061,253.62,253.6,12.09271372]
[1732307658059,0.59148061,253.64,253.6,12.09271372]
[1732307658264,0.59148061,253.64,253.63,12.09271372]
[1732307659071,0.59148061,253.66,253.63,12.09271372]
[1732307659276,0.59148061,253.66,253.65,12.09271372]
[1732307659583,0.59148061,253.72,253.65,12.09271372]
[1732307659759,0.59148061,253.72,253.71,12.09271372]
[1732307660168,2.03578704,253.77,253.71,12.09271372]
[1732307660169,0.59148061,253.76,253.71,12.09271372]
[1732307660370,0.59148061,253.76,253.75,12.09271372]
[1732307661169,0.59148061,253.76,253.75,24.18542744]
[1732307661371,2.03578704,253.77,253.75,24.18542744]
[1732307661583,0.59148061,253.81,253.8,12.09271372]
[1732307661786,0.59148061,253.84,253.8,12.09271372]
[1732307662079,0.59148061,253.84,253.83,12.09271372]
[1732307662470,0.59148061,253.88,253.83,12.09271372]
[1732307662673,3.09148061,253.88,253.86,12.09271372]
[1732307663078,5.0,253.86,253.82,12.09271372]
[1732307663268,2.5,253.84,253.66,22.3983]
[1732307663469,2.5,253.84,253.8,12.09271372]
[1732307663470,3.09148061,253.83,253.8,12.09271372]
[1732307663773,0.59148061,253.83,253.82,12.09271372]
[1732307664160,0.59148061,253.83,253.76,12.09271372]
[1732307664161,0.59148061,253.83,253.8,12.09271372]
[1732307664363,0.59148061,253.84,253.8,12.09271372]
[1732307665087,2.5,253.81,253.75,12.09271372]
[1732307665266,2.5,253.79,253.75,12.09271372]
[1732307665589,0.59148061,253.78,253.77,12.09271372]
[1732307666285,0.59148061,253.82,253.77,12.09271372]
[1732307666470,0.59148061,253.82,253.8,12.09271372]
[1732307667183,0.59148061,253.84,253.8,12.09271372]
[1732307667391,0.59148061,253.84,253.83,12.09271372]
[1732307668167,0.59148061,253.86,253.83,12.09271372]
[1732307668575,2.5,253.84,253.81,12.09271372]
[1732307668769,0.59148061,253.83,253.81,12.09271372]
[1732307669979,2.5,253.84,253.81,12.09271372]
[1732307670189,0.59148061,253.83,253.81,12.09271372]
[1732307670775,0.59148061,253.83,253.79,12.09271372]
[1732307671382,6.7535828,253.83,253.79,12.09271372]
[1732307671671,2.5,253.82,253.78,12.09271372]
[1732307671885,3.09148061,253.81,253.76,12.09271372]
[1732307672693,2.5,253.8,253.76,12.09271372]
[1732307672875,0.59148061,253.79,253.76,12.09271372]
[1732307673388,0.59148061,253.79,253.74,12.09271372]
[1732307673577,0.59148061,253.79,253.76,12.09271372]
[1732307677296,2.5,253.78,253.76,12.09271372]
[1732307677483,0.59148061,253.77,253.76,12.09271372]
[1732307677793,0.59148061,253.77,253.74,12.09271372]
[1732307678890,0.59148061,253.77,253.76,12.09271372]
[1732307679390,2.5,253.8,253.76,12.09271372]
[1732307679391,0.59148061,253.79,253.76,12.09271372]
[1732307681086,2.5,253.78,253.74,12.09271372]
[1732307681277,0.59148061,253.77,253.74,12.09271372]
[1732307682199,0.59148061,253.77,253.76,12.09271372]
[1732307682379,0.59148061,253.77,253.66,6.3145]
[1732307682380,0.59148061,253.77,253.74,12.09271372]
[1732307682781,2.03228955,253.76,253.74,12.09271372]
[1732307682981,0.59148061,253.75,253.74,12.09271372]
[1732307686092,0.59148061,253.75,253.66,6.3145]
[1732307686093,6.7535828,253.75,253.72,12.09271372]
[1732307686288,0.59148061,253.75,253.72,12.09271372]
[1732307686495,0.59148061,253.75,253.74,12.09271372]
[1732307688492,6.7535828,253.75,253.74,12.09271372]
[1732307688683,0.59148061,253.75,253.74,12.09271372]
[1732307690502,12.14420018,253.8,253.74,12.09271372]
[1732307690503,0.59148061,253.76,253.74,12.09271372]
[1732307690685,0.59148061,253.76,253.75,12.09271372]
[1732307691606,0.59148061,253.78,253.75,12.09271372]
[1732307691806,0.59148061,253.78,253.77,12.09271372]
[1732307693295,6.7535828,253.78,253.77,12.09271372]
[1732307693489,0.59148061,253.78,253.66,6.3145]
[1732307693686,0.59148061,253.78,253.77,12.09271372]
[1732307695403,3.09148061,253.78,253.77,12.09271372]
[1732307696189,3.09148061,253.78,253.75,12.09271372]
[1732307696792,3.09148061,253.78,253.77,12.09271372]
[1732307697189,0.59148061,253.78,253.77,12.09271372]
[1732307697706,0.59148061,253.78,253.76,12.09271372]
[1732307698797,0.59148061,253.78,253.77,7.72949527]
[1732307701194,2.62490543,253.82,253.77,7.72949527]
[1732307701402,2.62490543,253.82,253.76,30.91798108]
[1732307701403,2.62490543,253.82,253.81,7.72949527]
[1732307701794,0.59148061,253.82,253.81,7.72949527]
[1732307701995,0.59148061,253.86,253.81,7.72949527]
[1732307702195,0.59148061,253.86,253.85,7.72949527]
[1732307702797,0.59148061,253.86,253.7,15.3347]
[1732307703014,6.74095115,253.86,253.82,7.72949527]
[1732307703212,0.59148061,253.86,253.84,7.72949527]
[1732307703402,14.85790236,253.85,253.84,7.72949527]
[1732307703609,12.14420018,253.85,253.84,7.72949527]
[1732307703801,12.14420018,253.85,253.81,7.72949527]
[1732307704007,6.15350922,253.83,253.76,30.91798108]
[1732307704205,0.59148061,253.82,253.76,30.91798108]
[1732307704421,0.59148061,253.82,253.7,15.3347]
[1732307704713,6.15350922,253.81,253.7,15.3347]
[1732307704892,0.59148061,253.8,253.7,15.3347]
[1732307705090,0.59148061,253.8,253.79,7.72949527]
[1732307705294,0.59148061,253.82,253.79,7.72949527]
[1732307705490,0.59148061,253.82,253.81,7.72949527]
[1732307706300,6.74498983,253.83,253.81,7.72949527]
[1732307706519,6.74498983,253.83,253.82,7.72949527]
[1732307708100,0.59148061,253.83,253.82,7.72949527]
[1732307708301,6.15843009,253.83,253.82,7.72949527]
[1732307709222,0.59148061,253.84,253.82,7.72949527]
[1732307709403,12.73568079,253.84,253.82,7.72949527]
[1732307709608,0.59148061,253.84,253.82,7.72949527]
[1732307710220,12.73568079,253.84,253.82,7.72949527]
[1732307710598,14.86292996,253.83,253.82,7.72949527]
[1732307711213,14.86389902,253.83,253.82,7.72949527]
[1732307711414,12.14420018,253.83,253.82,7.72949527]
[1732307712220,12.73568079,253.83,253.82,7.72949527]
[1732307712525,0.59148061,253.83,253.82,7.72949527]
[1732307713027,0.59148061,253.83,253.7,15.3347]
[1732307713206,6.16637307,253.81,253.7,15.3347]
[1732307713530,6.75785368,253.8,253.7,15.3347]
[1732307715026,6.75785368,253.8,253.79,7.72949527]
[1732307715410,6.75785368,253.81,253.79,7.72949527]
[1732307715605,0.59148061,253.81,253.79,7.72949527]
[1732307716505,24.28840036,253.87,253.8,23.776884]
[1732307716826,2.03270196,253.95,253.8,23.776884]
[1732307716827,12.14420018,253.9,253.86,38.64747635]
[1732307717124,12.14420018,253.9,253.89,38.64747635]
[1732307717304,12.14420018,253.91,253.89,38.64747635]
[1732307717502,12.14420018,253.92,253.89,38.64747635]
[1732307717717,24.28840036,253.94,253.91,7.72949527]
[1732307717932,12.32815115,253.92,253.89,30.91798108]
[1732307718307,12.32815115,253.93,253.89,30.91798108]
[1732307718905,12.32815115,253.93,253.92,7.72949527]
[1732307719919,24.28840036,253.95,253.92,7.72949527]
[1732307720113,24.28840036,253.95,253.94,7.72949527]
[1732307720922,24.28840036,253.95,253.92,7.72949527]
[1732307721521,12.31961414,253.93,253.92,7.72949527]
[1732307721715,2.5,253.94,253.92,7.72949527]
[1732307721927,2.5,253.94,253.78,6.6344]
[1732307721928,2.5,253.91,253.88,7.72949527]
[1732307722106,14.81996056,253.91,253.88,7.72949527]
[1732307722311,12.31996056,253.91,253.88,7.72949527]
[1732307722716,12.31996056,253.9,253.88,7.72949527]
[1732307723212,12.31996056,253.9,253.86,7.72949527]
[1732307723729,2.5,253.89,253.86,7.72949527]
[1732307725031,2.5,253.89,253.84,7.72949527]
[1732307725726,14.81996056,253.89,253.84,7.72949527]
[1732307726034,2.5,253.86,253.83,7.72949527]
[1732307726332,2.5,253.86,253.85,7.72949527]
[1732307726535,14.81996056,253.86,253.83,7.72949527]
[1732307726829,14.81996056,253.86,253.83,12.07394976]
[1732307727932,2.5,253.84,253.83,12.07394976]
[1732307728534,2.5,253.85,253.83,12.07394976]
[1732307728733,14.81996056,253.86,253.83,12.07394976]
[1732307728918,12.31996056,253.86,253.85,12.07394976]
[1732307731015,12.31996056,253.86,253.83,12.07394976]
[1732307731426,12.31996056,253.86,253.85,12.07394976]
[1732307731622,2.5,253.87,253.85,12.07394976]
[1732307732021,39.80690036,253.88,253.85,12.07394976]
[1732307732221,2.5,253.87,253.85,12.07394976]
[1732307732423,24.28840036,253.88,253.85,12.07394976]
[1732307733035,12.32068874,253.86,253.85,12.07394976]
[1732307734829,14.82068874,253.86,253.83,12.07394976]
[1732307735227,12.32068874,253.85,253.83,12.07394976]
[1732307735636,2.5,253.86,253.83,12.07394976]
[1732307735825,12.32331288,253.84,253.83,12.07394976]
[1732307736028,26.78840036,253.86,253.83,12.07394976]
[1732307736428,24.28840036,253.85,253.83,12.07394976]
[1732307737347,2.5,253.84,253.83,12.07394976]
[1732307737641,2.5,253.84,253.81,12.07394976]
[1732307737949,12.32577065,253.82,253.81,12.07394976]
[1732307739039,14.35883067,253.82,253.81,12.07394976]
[1732307740828,4.53306002,253.82,253.79,12.07394976]
[1732307741034,12.33209667,253.81,253.79,12.07394976]
[1732307742944,12.33209667,253.8,253.79,12.07394976]
[1732307743533,28.82146038,253.82,253.79,12.07394976]
[1732307743852,12.33601651,253.8,253.79,12.07394976]
[1732307744233,31.32146038,253.82,253.79,12.07394976]
[1732307744433,2.5,253.8,253.79,12.07394976]
[1732307744641,26.78840036,253.8,253.79,12.07394976]
[1732307746126,24.28840036,253.8,253.79,12.07394976]
[1732307746334,24.28840036,253.81,253.79,12.07394976]
[1732307746828,24.28840036,253.81,253.8,7.72836306]
[1732307747533,26.32146038,253.82,253.8,7.72836306]
[1732307747943,36.53157151,253.87,253.8,7.72836306]
[1732307747944,12.3358913,253.83,253.8,7.72836306]
[1732307748145,12.3358913,253.83,253.82,7.72836306]
[1732307750846,28.0649303,253.83,253.82,7.72836306]
[1732307751757,15.729039,253.83,253.82,7.72836306]
[1732307752755,28.07099812,253.83,253.82,7.72836306]
[1732307753746,15.729039,253.83,253.82,7.72836306]
[1732307754852,28.07172676,253.83,253.82,7.72836306]
[1732307756247,15.729039,253.83,253.82,7.72836306]
[1732307758051,28.0718011,253.83,253.82,7.72836306]
[1732307758250,12.3427621,253.83,253.82,7.72836306]
[1732307758466,12.3427621,253.84,253.82,7.72836306]
[1732307759135,12.3427621,253.85,253.82,7.72836306]
[1732307759336,12.3427621,253.85,253.84,7.72836306]
[1732307759732,24.28840036,253.87,253.84,7.72836306]
[1732307759935,24.28840036,253.87,253.86,7.72836306]
[1732307761050,2.5,253.89,253.86,7.72836306]
[1732307765439,41.53157151,253.91,253.86,7.72836306]
[1732307765847,2.5,253.89,253.86,7.72836306]
[1732307767851,5.0,253.89,253.84,7.72836306]
[1732307768058,24.68267153,253.86,253.84,7.72836306]
[1732307768244,24.68267153,253.85,253.84,7.72836306]
[1732307769540,24.68267153,253.86,253.84,7.72836306]
[1732307769755,24.68267153,253.86,253.85,7.72836306]
[1732307771067,39.03157151,253.91,253.85,7.72836306]
[1732307771068,24.68267153,253.87,253.85,7.72836306]
[1732307771243,12.34252543,253.86,253.85,7.72836306]
[1732307771440,12.34252543,253.87,253.85,7.72836306]
[1732307771640,24.68267153,253.88,253.85,7.72836306]
[1732307771858,24.68267153,253.88,253.87,7.72836306]
[1732307773842,24.68267153,253.89,253.87,7.72836306]
[1732307774046,24.68267153,253.89,253.88,7.72836306]
[1732307774758,4.53454779,253.93,253.88,7.72836306]
[1732307775064,43.5661193,253.93,253.88,7.72836306]
[1732307776947,41.0661193,253.93,253.88,7.72836306]
[1732307777152,43.5661193,253.93,253.88,7.72836306]
[1732307777965,60.30845551,253.92,253.88,7.72836306]
[1732307778965,36.53157151,253.92,253.88,7.72836306]
[1732307779359,36.53157151,253.92,253.8,15.2087]
[1732307779360,2.5,253.89,253.8,15.2087]
[1732307779560,24.68076545,253.87,253.85,7.72836306]
[1732307779752,24.68076545,253.86,253.85,7.72836306]
[1732307779959,2.5,253.89,253.85,7.72836306]
[1732307780147,2.5,253.87,253.8,7.72836306]
[1732307780349,12.34218797,253.81,253.76,30.91345224]
[1732307780646,12.34218797,253.81,253.74,15.0637]
[1732307780852,12.34218797,253.81,253.71,6.3756]
[1732307781055,12.34218797,253.79,253.71,6.3756]
[1732307781361,12.34218797,253.79,253.78,7.72836306]
[1732307781549,12.34218797,253.8,253.78,7.72836306]
[1732307782576,12.34218797,253.81,253.78,7.72836306]
[1732307782753,12.34218797,253.81,253.8,7.72836306]
[1732307783156,12.34218797,253.82,253.8,7.72836306]
[1732307783352,12.34218797,253.82,253.81,7.72836306]
[1732307785072,12.34218797,253.82,253.79,7.72836306]
[1732307785271,12.34218797,253.81,253.79,7.72836306]
[1732307785768,12.34218797,253.81,253.77,7.72836306]
[1732307785973,12.34218797,253.8,253.77,7.72836306]
[1732307786153,12.34218797,253.8,253.79,7.72836306]
[1732307786877,27.18437595,253.82,253.79,7.72836306]
[1732307787988,24.68437595,253.81,253.79,7.72836306]
[1732307788155,24.68437595,253.8,253.79,7.72836306]
[1732307788578,24.68437595,253.8,253.77,7.72836306]
[1732307788779,12.34042592,253.78,253.77,7.72836306]
[1732307789151,27.18437595,253.79,253.74,7.72836306]
[1732307789350,12.33929454,253.76,253.74,7.72836306]
[1732307790077,12.33929454,253.77,253.74,7.72836306]
[1732307790377,12.33929454,253.77,253.76,7.72836306]
[1732307790981,12.33929454,253.78,253.76,7.72836306]
[1732307791667,14.37120188,253.78,253.76,7.72836306]
[1732307794755,12.33929454,253.78,253.76,7.72836306]
[1732307794956,12.33929454,253.79,253.76,7.72836306]
[1732307795181,12.33929454,253.79,253.78,7.72836306]
[1732307795881,12.33929454,253.81,253.78,7.72836306]
[1732307796076,12.33929454,253.83,253.8,7.72836306]
[1732307796283,12.33929454,253.83,253.82,7.72836306]
[1732307796772,12.33929454,253.85,253.82,7.72836306]
[1732307796978,12.33929454,253.85,253.84,7.72836306]
[1732307797361,12.33929454,253.86,253.84,7.72836306]
[1732307797676,12.33929454,253.86,253.85,7.72836306]
[1732307798981,12.33049548,253.86,253.85,7.72836306]
[1732307799280,12.33051234,253.86,253.85,7.72836306]
[1732307800581,12.33051234,253.87,253.85,7.72836306]
[1732307800957,12.33051234,253.87,253.86,30.91345224]
[1732307801157,14.36308372,253.94,253.88,38.6418153]
[1732307801357,48.29767384,253.97,253.93,7.72836306]
[1732307801557,29.21911326,254.02,253.96,7.72836306]
[1732307801779,2.5,254.02,254.01,7.72836306]
[1732307802865,1.5,254.02,254.01,7.72836306]
[1732307803177,24.68437595,254.09,254.01,38.6418153]
[1732307803384,24.68437595,254.12,254.08,7.72836306]
[1732307803579,15.716235,254.12,254.08,7.72836306]
[1732307803961,15.716235,254.12,254.11,7.72836306]
[1732307804174,2.03436945,254.14,254.11,7.72836306]
[1732307804884,2.03436945,254.14,254.1,12.04810937]
[1732307805576,2.03436945,254.14,254.03,1.0]
[1732307805577,2.03436945,254.14,254.12,12.04810937]
[1732307806985,2.03436945,254.14,254.1,12.04810937]
[1732307807477,23.776884,254.13,254.1,12.04810937]
[1732307808174,23.776884,254.13,254.08,12.04810937]
[1732307809675,25.276884,254.13,254.08,12.04810937]
[1732307810879,23.776884,254.13,254.08,12.04810937]
[1732307811685,11.77,254.12,254.08,12.04810937]
[1732307811885,23.776884,254.13,254.1,12.04810937]
[1732307812682,23.776884,254.1,254.04,12.04810937]
[1732307813170,2.03436945,254.14,254.07,12.04810937]
[1732307813375,1.5,254.13,254.07,12.04810937]
[1732307813584,1.5,254.13,254.02,1.0]
[1732307813768,13.54810937,254.13,254.06,12.04810937]
[1732307813969,13.54810937,254.13,254.04,12.04810937]
[1732307814170,16.04810937,254.13,254.04,12.04810937]
[1732307814489,23.776884,254.12,254.04,12.04810937]
[1732307815570,23.776884,254.12,254.06,12.04810937]
[1732307816783,23.776884,254.13,254.06,12.04810937]
[1732307817087,25.276884,254.13,254.06,12.04810937]
[1732307817596,2.03436945,254.14,254.06,12.04810937]
[1732307817776,2.03436945,254.14,254.08,12.04810937]
[1732307820590,2.03436945,254.14,254.1,12.04810937]
[1732307820972,2.03436945,254.14,254.12,12.04810937]
[1732307821175,2.03436945,254.14,254.1,12.04810937]
[1732307821586,12.04810937,254.19,254.1,12.04810937]
[1732307821985,2.03393377,254.18,254.1,12.04810937]
[1732307822183,14.08204377,254.18,254.12,12.04810937]
[1732307822390,12.04811,254.18,254.12,12.04810937]
[1732307822882,13.54811,254.18,254.12,12.04810937]
[1732307823083,12.04810937,254.17,254.08,12.04810937]
[1732307823686,13.54810937,254.17,254.08,12.04810937]
[1732307824989,23.776884,254.14,254.06,12.04810937]
[1732307825193,12.04810937,254.13,254.04,12.04810937]
[1732307825425,12.04810937,254.11,254.02,12.04810937]
[1732307826201,12.04810937,254.11,254.0,12.04810937]
[1732307826202,12.04810937,254.09,254.0,12.04810937]
[1732307826579,1.5,254.11,254.07,12.04810937]
[1732307826781,39.217884,254.12,254.06,7.71185991]
[1732307826984,46.92974391,254.12,254.04,7.71185991]
[1732307827388,7.71185991,254.1,253.96,1.0]
[1732307827678,7.71185991,254.08,254.01,7.71185991]
[1732307827987,7.71185991,254.08,253.94,22.6969]
[1732307828291,7.71185991,254.08,253.96,7.71185991]
[1732307828292,7.71185991,254.06,253.96,7.71185991]
[1732307828812,7.71185991,254.04,253.96,7.71185991]
[1732307828980,7.71185991,254.01,253.92,7.71185991]
[1732307829181,7.71185991,254.03,253.94,7.71185991]
[1732307829474,7.71185991,254.03,253.94,8.71185991]
[1732307829790,7.71185991,254.03,253.94,7.71185991]
[1732307830997,7.71185991,254.01,253.92,7.71185991]
[1732307834774,7.71185991,254.01,253.89,1.0]
[1732307834775,7.71185991,253.99,253.9,7.71185991]
[1732307835113,7.71185991,253.99,253.82,21.7101]
[1732307835114,7.71185991,253.97,253.88,7.71185991]
[1732307835277,9.21185991,253.97,253.88,7.71185991]
[1732307835478,7.71185991,253.95,253.85,1.0]
[1732307835678,7.71185991,253.93,253.85,1.0]
[1732307836100,7.71185991,253.95,253.86,7.71185991]
[1732307836594,17.4214,254.02,253.9,7.71185991]
[1732307836792,7.71185991,254.0,253.9,7.71185991]
[1732307836995,25.13325991,254.02,253.92,7.71185991]
[1732307837186,23.63325991,254.02,253.92,7.71185991]
[1732307837594,23.63325991,254.02,253.93,1.0]
[1732307838809,7.71185991,253.98,253.91,1.0]
[1732307838982,7.71185991,253.96,253.87,1.0]
[1732307840800,12.06949706,253.95,253.87,1.0]
[1732307841793,12.06949706,253.93,253.86,12.06949706]
[1732307842106,12.06949706,253.91,253.85,1.0]
[1732307842903,12.06949706,253.89,253.85,1.0]
[1732307843105,2.04859058,253.9,253.85,1.0]
[1732307843915,2.04859058,253.9,253.85,13.06949706]
[1732307846900,2.04859058,253.9,253.85,1.0]
[1732307847104,12.06949706,253.89,253.85,1.0]
[1732307847303,2.04859058,253.9,253.85,1.0]
[1732307847811,2.04859058,253.9,253.83,12.06949706]
[1732307848004,2.04859058,253.9,253.85,1.0]
[1732307848395,2.04859058,253.9,253.85,13.06949706]
[1732307848594,2.04859058,253.9,253.87,1.0]
[1732307849202,2.04859058,253.9,253.85,13.06949706]
[1732307849600,2.04859058,253.9,253.85,1.0]
[1732307851110,12.06949706,253.89,253.79,13.06949706]
[1732307851297,12.06949706,253.87,253.79,12.06949706]
[1732307852304,12.06949706,253.87,253.79,13.06949706]
[1732307852509,2.04859058,253.9,253.84,1.0]
[1732307852814,2.04859058,253.9,253.86,1.0]
[1732307854118,2.04859058,253.9,253.88,1.0]
[1732307854695,2.04859058,253.9,253.89,1.0]
[1732307855903,2.04859058,253.9,253.87,12.06949706]
[1732307856108,2.04859058,253.9,253.87,1.0]
[1732307856308,2.04859058,253.9,253.88,1.0]
[1732307856621,2.04859058,253.9,253.85,13.06949706]
[1732307856823,2.04859058,253.9,253.88,1.0]
[1732307859605,2.04859058,253.9,253.87,1.0]
[1732307859912,2.04859058,253.9,253.85,13.06949706]
[1732307860111,2.04859058,253.9,253.87,1.0]
[1732307860325,2.04859058,253.9,253.85,13.06949706]
[1732307860515,2.04859058,253.9,253.85,12.06949706]
[1732307861529,2.04859058,253.9,253.89,1.0]
[1732307862229,14.11808758,253.9,253.89,1.0]
[1732307862818,14.11808758,253.9,253.88,1.0]
[1732307866421,7.726103,253.89,253.8,1.0]
[1732307866624,7.726103,253.89,253.8,8.726103]
[1732307867212,7.726103,253.87,253.8,1.0]
[1732307867411,7.726103,253.87,253.83,1.0]
[1732307867818,2.04875288,253.86,253.83,1.0]
[1732307868133,2.04875288,253.86,253.85,1.0]
[1732307868323,2.04875288,253.86,253.82,8.726103]
[1732307868508,2.04875288,253.86,253.85,1.0]
[1732307869732,2.04875288,253.86,253.83,1.0]
[1732307869931,2.04875288,253.86,253.81,1.0]
[1732307870609,2.04875288,253.86,253.84,1.0]
[1732307870812,2.04875288,253.86,253.81,1.0]
[1732307875441,9.77485588,253.86,253.81,1.0]
[1732307875731,9.77485588,253.86,253.8,1.0]
[1732307876031,2.04875288,253.86,253.8,1.0]
[1732307876415,2.04875288,253.86,253.83,1.0]
[1732307877313,2.04875288,253.86,253.78,7.726103]
[1732307877314,2.04875288,253.86,253.8,1.0]
[1732307878023,9.77485588,253.86,253.8,1.0]
[1732307878225,15.87546381,253.86,253.8,1.0]
[1732307879331,15.87546381,253.86,253.82,1.0]
[1732307879511,6.10060793,253.85,253.82,1.0]
[1732307879722,6.10060793,253.85,253.8,1.0]
[1732307880218,15.87546381,253.86,253.8,1.0]
[1732307880440,6.10060793,253.85,253.8,1.0]
[1732307881513,6.10060793,253.85,253.8,8.726103]
[1732307881714,6.10060793,253.85,253.82,1.0]
[1732307882318,6.10060793,253.85,253.8,8.726103]
[1732307882522,6.10060793,253.85,253.84,8.726103]
[1732307883235,8.14936081,253.86,253.84,8.726103]
[1732307884019,2.04875288,253.86,253.84,8.726103]
[1732307891550,8.14936081,253.86,253.82,7.726103]
[1732307891856,6.10060793,253.83,253.82,7.726103]
[1732307892136,6.10060793,253.84,253.82,7.726103]
[1732307892341,6.10060793,253.84,253.83,1.0]
[1732307892525,12.33704301,253.86,253.83,1.0]
[1732307892730,12.33704301,253.86,253.85,7.726103]
[1732307893134,12.33704301,253.87,253.85,7.726103]
[1732307893337,14.38532289,253.86,253.83,7.726103]
[1732307893738,14.38532289,253.86,253.75,21.5534]
[1732307893739,12.33704301,253.85,253.78,1.0]
[1732307893944,12.33704301,253.83,253.81,7.726103]
[1732307894131,12.33704301,253.83,253.78,1.0]
[1732307894325,6.17073914,253.81,253.78,1.0]
[1732307894525,6.17073914,253.8,253.78,1.0]
[1732307895056,12.33704301,253.81,253.77,7.726103]
[1732307895343,24.68437595,253.83,253.75,7.726103]
[1732307895344,12.33704301,253.78,253.75,7.726103]
[1732307895525,6.17035486,253.76,253.75,7.726103]
[1732307895725,12.33704301,253.77,253.75,7.726103]
[1732307896329,12.33704301,253.79,253.77,1.0]
[1732307896646,6.16703517,253.79,253.78,7.726103]
[1732307897026,6.16703517,253.82,253.78,7.726103]
[1732307897234,6.16703517,253.82,253.81,1.0]
[1732307897428,6.16703517,253.83,253.81,1.0]
[1732307897747,6.16703517,253.83,253.82,7.726103]
[1732307897950,6.16703517,253.84,253.82,7.726103]
[1732307898147,6.16703517,253.84,253.83,1.0]
[1732307898843,6.16703517,253.84,253.83,13.06957051]
[1732307899151,2.04827988,253.86,253.83,13.06957051]
[1732307899325,12.069497,253.91,253.79,23.6509]
[1732307899326,12.069497,253.91,253.9,1.0]
[1732307899648,12.069497,253.91,253.9,13.06957051]
[1732307899829,14.11734833,253.91,253.9,13.06957051]
[1732307900029,12.069497,253.91,253.9,13.06957051]
[1732307912751,14.38533879,253.95,253.9,13.06957051]
[1732307913049,14.38533879,253.95,253.93,12.06957051]
[1732307913254,14.38533879,253.95,253.94,1.0]
[1732307913431,26.45490879,253.95,253.94,1.0]
[1732307913754,12.06957,253.95,253.94,1.0]
[1732307914568,11.01583277,253.95,253.94,1.0]
[1732307917041,2.04717493,254.0,253.99,13.06957051]
[1732307919351,2.04717493,254.0,253.99,12.06957051]
[1732307920259,12.33704301,254.05,253.99,12.06957051]
[1732307920260,24.68437595,254.08,254.05,1.0]
[1732307920433,4.24066744,254.26,254.25,1.0]
[1732307920637,16.4504,254.31,254.25,8.69918183]
[1732307920846,16.4504,254.31,254.3,7.69918183]
[1732307921161,7.8021,254.39,254.3,7.69918183]
[1732307921162,16.4504,254.38,254.3,7.69918183]
[1732307921359,16.4504,254.38,254.32,7.69918183]
[1732307922040,23.776884,254.37,254.32,7.69918183]
[1732307922235,2.5,254.36,254.28,7.69918183]
[1732307922561,7.69918183,254.37,254.28,7.69918183]
[1732307922741,12.03202317,254.36,254.27,12.03202317]
[1732307923065,12.03202317,254.32,254.22,1.0]
[1732307923365,12.03202317,254.34,254.25,12.03202317]
[1732307923544,23.776884,254.33,254.25,12.03202317]
[1732307924057,23.776884,254.35,254.27,12.03202317]
[1732307924640,23.776884,254.35,254.29,12.03202317]
[1732307924859,28.48242317,254.38,254.29,12.03202317]
[1732307926164,23.776884,254.37,254.29,12.03202317]
[1732307926567,23.776884,254.37,254.31,12.03202317]
[1732307926759,16.4504,254.38,254.31,12.03202317]
[1732307928161,23.776884,254.37,254.29,12.03202317]
[1732307928363,12.03202317,254.36,254.27,12.03202317]
[1732307928568,23.776884,254.33,254.25,12.03202317]
[1732307929953,12.03202317,254.32,254.23,12.03202317]
[1732307930254,23.776884,254.31,254.23,12.03202317]
[1732307930652,12.03202317,254.28,254.22,1.0]
[1732307930967,12.03202317,254.28,254.2,1.0]
[1732307931160,12.03202317,254.28,254.22,1.0]
[1732307931377,23.776884,254.27,254.2,1.0]
[1732307931943,12.03202317,254.26,254.2,1.0]
[1732307940367,12.03202317,254.22,254.2,1.0]
[1732307941069,23.776884,254.23,254.2,1.0]
[1732307941550,2.04592112,254.22,254.2,1.0]
[1732307941749,2.04592112,254.22,254.15,13.03202317]
[1732307941950,2.04592112,254.22,254.19,1.0]
[1732307942252,23.776884,254.21,254.15,13.03202317]
[1732307942458,23.776884,254.19,254.11,13.03202317]
[1732307943779,23.776884,254.19,254.13,13.03202317]
[1732307944076,2.04592112,254.22,254.15,12.03202317]
[1732307944456,23.776884,254.21,254.13,13.03202317]
[1732307945067,12.03202317,254.2,254.13,1.0]
[1732307945387,12.03202317,254.18,254.11,1.0]
[1732307945556,23.776884,254.17,254.11,1.0]
[1732307946856,23.776884,254.19,254.11,1.0]
[1732307947276,12.03202317,254.18,254.11,1.0]
[1732307947659,23.776884,254.17,254.11,1.0]
[1732307949054,23.776884,254.17,254.1,12.03202317]
[1732307949257,23.776884,254.17,254.11,1.0]
[1732307949977,23.776884,254.17,254.09,1.0]
[1732307950174,23.776884,254.17,254.11,1.0]
[1732307950373,12.03202317,254.12,254.07,1.0]